[Event "ESP-chT Honor Division 2022"]
[Site "Linares"]
[Date "2022.09.19"]
[Round "3.18"]
[White "Rodriguez Redondo, Adhara"]
[Black "Batsiashvili, Nino"]
[Result "1/2-1/2"]
[ECO "C58"]
[WhiteElo "2112"]
[BlackElo "2477"]
[Annotator "TA"]
[PlyCount "98"]
[EventDate "2022.09.17"]
[EventType "team-tourn"]
[EventCountry "ESP"]
[SourceTitle "playchess.com"]
[Source "ChessBase"]
[SourceQuality "1"]
[TimeControl "5400+30"]

{[%evp 15,98,24,68,75,60,73,104,104,106,81,102,105,109,97,173,96,100,106,106,79,75,70,81,83,83,91,113,116,108,96,104,47,122,108,132,132,132,125,150,125,166,152,171,116,128,107,156,95,95,85,85,85,85,85,94,108,99,82,82,82,82,82,82,82,82,82,82,0,82,82,82,0,123,83,176,0,83,0,135,0,83,0,83,0,83]} 1. e4 {[%emt 0:00:31]} e5 {[%emt 0:00:11]} 2. Nf3 {[%emt 0:00:30][%cal Bg1f3,Bf3g5,Bg5e4,Be4g3][%mdl 32]} Nc6 {[%emt 0:00:04]} 3. Bc4 {[%emt 0:00:04]} Nf6 {[%emt 0:00:06]} 4. Ng5 {[%emt 0:00:51]} d5 {[%emt 0:00:11]} 5. exd5 {[%emt 0:00:05]} Na5 {[%emt 0:00:05]} 6. Bb5+ {[%emt 0:00:05][%cal Bc4b5,Bb5d3,Bd3f5][%mdl 32]} c6 {[%emt 0:00:08]} 7. dxc6 {[%emt 0:00:06]} bxc6 {[%emt 0:00:05]} 8. Bd3 {[%emt 0:00:06]} h6 {[%emt 0:02:16] CPLX 2.8 44 (Bf8-d6) (=44)} 9. Ne4 {[%emt 0:00:11] EASY. C58: Two Knights: 4 Ng5 d5 5 exd5 Na5 sidelines.} Nd5 {[%emt 0:00:56] CPLX 2.7 0 (Nf6xe4) (=22)} 10. O-O {[%emt 0:02:12]} Be7 {[%emt 0:00:57] CPLX 2.6 31 (g7-g6) (=25) 10...Nf4 injects fresh life into this line.} 11. Ng3 {[%emt 0:00:35] BESTDEEP. White is better.} O-O {[%emt 0:05:26] BESTDEEP} 12. Bf5 {[%emt 0:01:22] CPLX 2.8 25 (Rf1-e1) (=6)} c5 {[%emt 0:04:18] CPLX 2.8 21 (Bc8xf5) (=19)} 13. d3 {[%emt 0:10:04] [#] CPLX 2.8} Nc6 $146 {[%emt 0:01:52] CPLX 3.1 4 (Ra8-b8) (=17)} ({Predecessor:} 13... Bb7 14. Qg4 Nf6 15. Qh3 Nc6 16. c3 Re8 17. Nd2 Nh7 18. Nde4 Bf8 19. Bxh6 gxh6 20. Bxh7+ Kxh7 21. Qf5+ Kh8 22. Nf6 {1-0 (22) Larrea,M (2269)-Malan,L (1851) Montevideo 2019}) 14. Nc3 {[%emt 0:04:39] CPLX 3.1 12 (Nb1-d2) (=6)} Nd4 {[%emt 0:08:26] [#] CPLX 3.2 76 (Nd5-f4) (=25)} (14... Nf4 $16 {keeps fighting.}) 15. Nxd5 {[%emt 0:06:53] CPLX 3.5 77 (Bf5-e4) (=16)} (15. Be4 $1 $18 {[%cal Re4d5]} Bb7 16. Nxd5 Bxd5 17. c3) 15... Nxf5 $16 {[%emt 0:02:35] CPLX 4.3} 16. Nxf5 {[%emt 0:04:04] RECAPT} Bxf5 {[%emt 0:00:07] RECAPT} 17. Nxe7+ {[%emt 0:01:29] CPLX 2.9 27 (Qd1-h5) (=16)} Qxe7 {[%emt 0:00:02] RECAPT} 18. Qf3 {[%emt 0:03:50] CPLX 2.2 5 (Rf1-e1) (=15)} Bg6 {[%emt 0:04:30] CPLX 2.6 11 (Qe7-e6) (=17)} 19. Re1 {[%emt 0:04:09] BESTDEEP} Rfe8 {[%emt 0:05:16] BESTDEEP} 20. b3 {[%emt 0:09:30] White is more active. BESTDEEP} Qd6 {[%emt 0:01:06][%cal Oe5e4] CPLX 2.5 22 (e5-e4) (=16)} 21. Bb2 {[%emt 0:09:21][%cal Ob2e5] CPLX 2.6} f6 {[%emt 0:00:31] CPLX 2.6} 22. Qg3 {[%emt 0:03:16] CPLX 2.5 12 (Qf3-g4) (=11)} Kh7 {[%emt 0:00:34] CPLX 2.5 8 (Bg6-f5) (=14)} 23. a4 {[%emt 0:04:22] CPLX 2.4 57 (Re1-e2) (=14)} (23. Re2 $16) 23... a5 {[%emt 0:00:40] CPLX 2.4 75 (Qd6-c6) (=18)} (23... Qc6 $14) 24. Bc3 {[%emt 0:02:03] CPLX 2.4 14 (Re1-e2) (=14)} Bf7 {[%emt 0:04:44] CPLX 2.4 24 (Qd6-b6) (=19)} 25. Qg4 {[%emt 0:02:23] CPLX 2.5 0 (f2-f3) (=13)} Ra7 {[%emt 0:07:08] BESTDEEP} 26. Re3 {[%emt 0:03:52] CPLX 3.8 7 (h2-h4) (=13)} g5 {[%emt 0:01:12] CPLX 3.8 25 (Qd6-c6) (=18)} 27. Rae1 {[%emt 0:04:53] CPLX 3.6 25 (h2-h4) (=14)} Bg6 {[%emt 0:01:59] CPLX 3.6 41 (Qd6-c6) (=19)} 28. Qe2 {[%emt 0:01:32] CPLX 2.6 14 (h2-h4) (=14)} Rg8 {[%emt 0:04:37] CPLX 2.3 19 (Qd6-c6) (=19)} 29. Qd2 {[%emt 0:03:30] CPLX 2.3 55 (h2-h4) (=16)} ({White should try} 29. h4 $18) 29... Qd8 {[%emt 0:00:23] CPLX 2.3 12 (Qd6-b6) (=19)} 30. Bb2 {[%emt 0:02:01] CPLX 2.2 21 (Re3-f3) (=16)} h5 {[%emt 0:00:55] [#] CPLX 2.2 49 (Qd8-d5) (=20)} (30... Qd5 $142 31. Bc3 Qa8) 31. Ba3 {[%emt 0:04:19] CPLX 2.2 61 (h2-h4) (=18)} (31. h4 $142 $1 {[%cal Rh4g5] Threatens to win with hxg5.} g4 32. f4 gxf3 33. Rxf3) 31... Qd4 {[%emt 0:03:36] CPLX 2.3 0 (Qd8-d5) (=19)} 32. Qc1 {[%emt 0:01:54] CPLX 2.6 10 (h2-h3) (=18)} h4 {[%emt 0:02:27] CPLX 2.4} 33. Bb2 {[%emt 0:00:44] CPLX 2.5 0 (h2-h3) (=17)} Qd8 {[%emt 0:03:39] BESTDEEP} 34. Qd1 {[%emt 0:00:46] CPLX 2.3} Qd7 {[%emt 0:07:24] CPLX 2.3 9 (Bg6-f7) (=17)} 35. h3 {[%emt 0:02:48] CPLX 2.5} Kh6 {[%emt 0:06:56] CPLX 2.3 0 (Qd7-d8) (=17)} 36. f3 {[%emt 0:01:03] CPLX 2.4 17 (Bb2-c3) (=16)} Bf5 {[%emt 0:01:38] BESTDEEP} 37. Qe2 {[%emt 0:01:10] CPLX 2.5 0 (Bb2-c3) (=15)} Kg6 {[%emt 0:00:13] CPLX 2.5} 38. Qf2 {[%emt 0:01:11] CPLX 2.5 0 (Bb2-c3) (=15)} Qc6 {[%emt 0:01:52] CPLX 2.5} 39. Bc3 {[%emt 0:00:51] CPLX 2.6 0 (Re3-e2) (=14)} Rd8 {[%emt 0:01:08] CPLX 2.6} 40. Qe2 {[%emt 0:00:55] CPLX 2.7 0 (Kg1-h1) (=14)} Rd6 {[%emt 0:07:21] BESTDEEP} 41. Qf2 {[%emt 0:00:39] CPLX 2.6 82 (Bc3-d2) (=16)} (41. Bd2 $16) 41... Qb6 {[%emt 0:00:15] RELBLUND 82 (Rd6-d8) (=16)} (41... Rd8 $1 $11) 42. Kh2 {[%emt 0:01:00] CPLX 2.6 0 (Re3-e2) (=15)} Qc7 {[%emt 0:01:45] CPLX 2.8 0 (Ra7-a8) (=16)} 43. Kg1 {[%emt 0:00:05] CPLX 2.8 82 (Re3-e2) (=17)} (43. R3e2 $16) 43... Raa6 {[%emt 0:00:51] RELBLUND 123 (Qc7-b6) (=19)} (43... Qb6 $1 $11 {keeps the balance.}) 44. R3e2 {[%emt 0:00:44] CPLX 2.6 40 (g2-g3) (=18)} Rd5 {[%emt 0:00:47] CPLX 2.6 93 (Rd6-d8) (=21)} (44... Rd8 $16) 45. Re3 $2 {[%emt 0:00:20] CPLX 2.6 176 (g2-g3) (=22)} (45. g3 $18) 45... Rc6 {[%emt 0:00:15] RELBLUND 83 (Rd5-d6) (=22)} (45... Rdd6 $1 $11) 46. R3e2 {[%emt 0:00:18] CPLX 2.6 83 (Bc3-d2) (=24)} ({Better is} 46. Bd2 $16) 46... Rcd6 {[%emt 0:05:37] RELBLUND 135 (Rc6-a6) (=25)} (46... Ra6 $1 $11 {remains equal.}) 47. Re3 {[%emt 0:00:11] CPLX 2.6 135 (g2-g3) (=27)} (47. g3 $16) 47... Rd8 {[%emt 0:00:32] RELBLUND 83 (Rd6-c6) (=27)} (47... Rc6 $1 $11) 48. R3e2 {[%emt 0:00:18] CPLX 2.6 83 (Bc3-d2) (=28)} (48. Bd2 $16) 48... Qb6 {[%emt 0:00:58] RELBLUND 83 (Rd8-d6) (=28)} (48... R8d6 $1 $11) 49. Re3 {[%emt 0:00:16] CPLX 2.6 83 (Re1-f1) (=29)} Qc7 $1 {[%emt 0:01:30] Black escapes into a draw.  Weighted Error Value: White=0.31/Black=0.34} 1/2-1/2

[Event "ESP-chT Honor Division 2022"]
[Site "Linares"]
[Date "2022.09.19"]
[Round "3.19"]
[White "Van Foreest, Jorden"]
[Black "Cheparinov, Ivan"]
[Result "1-0"]
[ECO "D02"]
[WhiteElo "2691"]
[BlackElo "2686"]
[Annotator "TA"]
[PlyCount "75"]
[EventDate "2022.09.17"]
[EventType "team-tourn"]
[EventCountry "ESP"]
[SourceTitle "playchess.com"]
[Source "ChessBase"]
[SourceQuality "1"]
[TimeControl "5400+30"]

{[%evp 9,75,4,2,-13,0,0,16,8,13,-27,-21,-12,-7,-29,-25,-27,-9,-12,0,0,50,57,67,39,39,48,47,21,29,18,15,6,23,12,14,-72,284,177,191,186,174,173,176,108,114,125,126,95,278,269,354,336,320,287,270,133,131,130,128,117,348,70,219,210,214,223,308,270]} 1. d4 {[%emt 0:00:03]} d5 {[%emt 0:00:07]} 2. Nf3 {[%emt 0:00:13]} Nf6 {[%emt 0:00:05]} 3. c3 {[%emt 0:00:06]} c6 {[%emt 0:03:00]} 4. Qc2 {[%emt 0:00:27]} Bg4 {[%emt 0:06:07]} 5. Ne5 {[%emt 0:00:58]} Bh5 {[%emt 0:00:02] BESTDEEP} 6. Qf5 {[%emt 0:00:44] CPLX 2.1 15 (Qc2-b3) (=15). D02: 1 d4 d5 2 Nf3 sidelines, including 2...Nf6 3 g3 and 2...Nf6 3 Bf4.} Bg6 {[%emt 0:06:17] CPLX 2.6 13 (Nb8-d7) (=7)} 7. Qh3 {[%emt 0:00:17] CPLX 2.8} Bxb1 {[%emt 0:00:03] CPLX 2.4 16 (Rh8-g8) (=10)} 8. Rxb1 {[%emt 0:00:09] RECAPT. The position is equal.} Nbd7 {[%emt 0:00:16] [#] EASY} 9. g4 $146 {[%emt 0:15:15] CPLX 2.5 40 (f2-f3) (=14)} ({Predecessor:} 9. Bf4 e6 10. e3 Nxe5 11. dxe5 Nd7 12. Qg3 g6 13. h4 Bg7 14. h5 Qc7 15. Qh4 {0-1 (43) Liang,J (2408)-Stremavicius,T (2500) New York 2021}) 9... Nxe5 {[%emt 0:07:36] BESTDEEP} 10. dxe5 {[%emt 0:00:16] RECAPT} Nd7 {[%emt 0:00:10] CPLX 2.3} 11. e6 {[%emt 0:02:23] BESTDEEP} fxe6 {[%emt 0:00:08] EASY} 12. g5 {[%emt 0:00:46] CPLX 2.0 2 (Bf1-g2) (=8)} e5 {[%emt 0:01:44] CPLX 2.2 18 (Qd8-a5) (=6)} (12... Qa5 $5 {[%cal Ra5a2]}) 13. e4 {[%emt 0:05:43] CPLX 2.3} Nc5 {[%emt 0:09:32] CPLX 2.5 12 (Qd8-a5) (=7)} 14. Be2 {[%emt 0:01:37] DEEPSTRONG} g6 {[%emt 0:02:28] CPLX 2.8 50 (Nc5xe4) (=11)} (14... Nxe4 $11 15. Bh5+ g6 16. Bxg6+ hxg6 17. Qxh8 Qd7) 15. exd5 $14 {[%emt 0:02:25] CPLX 2.6} cxd5 {[%emt 0:12:24] RECAPT} 16. Be3 {[%emt 0:07:11] CPLX 2.5 28 (Be2-b5) (=8)} Qd7 {[%emt 0:07:43] Inhibits Bb5. CPLX 2.9} 17. Bg4 {[%emt 0:07:58] BESTDEEP} Qc6 {[%emt 0:11:28] White must now prevent ...Nd3+. BESTDEEP} 18. O-O {[%emt 0:04:28] CPLX 2.8 26 (Be3xc5) (=9)} (18. Bxc5 $5 Qxc5 19. Bd7+ Kd8 20. Rd1 $11) 18... Rd8 {[%emt 0:00:43] CPLX 2.7} 19. f4 {[%emt 0:02:21] BESTDEEP} d4 {[%emt 0:02:02] EASY} 20. cxd4 {[%emt 0:04:32] CPLX 3.6 9 (Be3-f2) (=8)} exd4 {[%emt 0:00:13] RECAPT} 21. Bd2 {[%emt 0:01:12] aiming for f5. A strong pair of Bishops. CPLX 3.3} Bg7 $1 {[%emt 0:02:19] DEEPSTRONG} 22. Rbc1 {[%emt 0:07:28] RELBLUND 86 (Bg4-f3) (=12)} (22. Bf3 $11 {remains equal.} Qd7 23. Qxd7+ Kxd7 24. b4) 22... Qb6 $2 {[%emt 0:00:54][%mdl 8192] RELBLUND 356 (d4-d3) (=26)} (22... d3 $17 {Hoping for ...Bd4+.} 23. Bf3 Qd6) 23. Qa3 {[%emt 0:00:35] CPLX 3.0 107 (f4-f5) (=17)} Rd5 {[%emt 0:07:02] BESTDEEP} 24. Bf3 $36 {[%emt 0:04:17][%mdl 3072] White has strong compensation. Keeping Black busy. BESTDEEP} (24. Bb4 d3 25. Kh1 (25. Bxc5 Rxc5 26. Rxc5 Bd4+ 27. Kh1 Qxc5 $11) 25... Bd4 $16) 24... Rf5 {[%emt 0:00:20] [#] EASY} 25. b4 $1 {[%emt 0:00:16] DEEPSTRONG} ({Don't do} 25. Bb4 $6 d3 26. Bxc5 Rxc5 27. Rxc5 Bd4+ 28. Kg2 (28. Kh1 Qxc5 29. Qxd3 O-O $11) 28... Bxc5 29. Qxd3 Qxb2+ 30. Kh1 Qd4 $11) 25... Ne6 {[%emt 0:01:08] CPLX 2.9} 26. Qa4+ {[%emt 0:00:04] CPLX 3.3 68 (Rf1-e1) (=18)} (26. Rfe1 $18) 26... Kf7 $16 {[%emt 0:01:01] CPLX 3.2} 27. Qb3 {[%emt 0:00:38] CPLX 3.1} Rd8 {[%emt 0:01:45] CPLX 3.3} 28. Rfe1 {[%emt 0:00:51] And now Bg4 would win. CPLX 3.3 31 (Bf3-e4) (=18)} Rd6 $2 {[%emt 0:02:30] MISS-d4-d3 183 (d4-d3) (=27)} (28... d3+ $16 {is a better defense.} 29. Kg2 a5) 29. Kg2 {[%emt 0:02:52] CPLX 4.5 9 (Bf3-e4) (=18)} ({Weaker is} 29. Rc8 d3+ 30. Kg2 Qd4 $16) 29... Kf8 {[%emt 0:02:46] CPLX 4.5 85 (a7-a6) (=29)} 30. Rc8+ {[%emt 0:00:29] CPLX 4.0 18 (Bf3-g4) (=18)} Nd8 {[%emt 0:00:03] BESTDEEP} 31. Bg4 {[%emt 0:01:50] CPLX 4.5 33 (a2-a4) (=18)} ({Less strong is} 31. Qa4 d3 $16) 31... Qb5 {[%emt 0:05:38] CPLX 4.8} 32. Bxf5 {[%emt 0:02:27] CPLX 5.1 137 (a2-a4) (=23)} (32. a4 $18 Qd5+ 33. Qxd5 Rfxd5 34. Bf3) 32... Qxf5 {[%emt 0:00:03] RECAPT} 33. Rc5 {[%emt 0:00:28] Chess con chili. CPLX 5.4 1 (Qb3-h3) (=22)} Qd7 {[%emt 0:00:51] CPLX 5.1 0 (Qf5-g4) (=25)} 34. Qf3 {[%emt 0:01:12] White is much more active. CPLX 4.1} b6 $2 {[%emt 0:03:15] [#] CPLX 3.2 231 (Kf8-g8) (=32)} (34... Kg8 $16) 35. Rc4 $2 {[%emt 0:01:28] RELBLUND 278 (Rc5-e5) (=30)} (35. Rce5 $1 $18 {[%cal Re5e7][%mdl 512]}) 35... Rd5 {[%emt 0:01:01] [#] CPLX 3.3 149 (d4-d3) (=36)} (35... d3 $14) 36. Rc7 $3 $18 {[%emt 0:00:35][%mdl 512] CPLX 3.3} Qxc7 {[%emt 0:00:19] EASY} 37. Qxd5 {[%emt 0:00:07] Threatens to win with b5. EASY} e6 {[%emt 0:00:31] CPLX 3.9 85 (Kf8-e8) (=36)} 38. Rc1 {Weighted Error Value: White=0.34/Black=0.49} 1-0

[Event "ESP-chT Honor Division 2022"]
[Site "Linares"]
[Date "2022.09.19"]
[Round "3.20"]
[White "Santos Latasa, Jaime"]
[Black "Nihal Sarin"]
[Result "1/2-1/2"]
[ECO "C42"]
[WhiteElo "2680"]
[BlackElo "2677"]
[Annotator "TA"]
[PlyCount "66"]
[EventDate "2022.09.17"]
[EventType "team-tourn"]
[EventCountry "ESP"]
[SourceTitle "playchess.com"]
[Source "ChessBase"]
[SourceQuality "1"]
[TimeControl "5400+30"]

{[%evp 15,66,26,29,17,15,20,14,22,20,19,18,11,25,17,30,21,28,18,28,16,20,18,22,16,26,11,25,15,16,16,9,10,9,0,0,4,2,0,9,0,10,8,9,9,17,10,12,12,25,7,6,8,14]} 1. e4 {[%emt 0:00:03]} e5 {[%emt 0:01:06]} 2. Nf3 {[%emt 0:00:06]} Nf6 {[%emt 0:00:04][%cal Bg8f6,Bf6e4,Be4d6][%mdl 32]} 3. Nxe5 {[%emt 0:00:13]} d6 {[%emt 0:00:04]} 4. Nf3 {[%emt 0:00:05]} Nxe4 {[%emt 0:00:05]} 5. d4 {[%emt 0:00:25]} d5 {[%emt 0:00:13]} 6. Bd3 {[%emt 0:00:07]} Bf5 {[%emt 0:00:18]} 7. O-O {[%emt 0:00:38]} Be7 {[%emt 0:00:11]} 8. Re1 {[%emt 0:00:12]} O-O {[%emt 0:01:03] BESTDEEP} 9. Nbd2 {[%emt 0:00:15][%cal Rd2e4] CPLX 2.5 12 (c2-c4) (=12). C42: Petroff Defence: 3 Nxe5 and unusual White 3rd moves.} (9. c4 {looks sharper.} Nc6 10. cxd5 Qxd5 11. Nc3) 9... Nd6 $1 {[%emt 0:00:16] CPLX 2.5} 10. Nf1 {[%emt 0:00:09] CPLX 2.2 0 (Bd3xf5) (=6)} c6 {[%emt 0:02:40] 10...Bg6 is a critical line.} 11. Bf4 {[%emt 0:01:01] [#] Black must now prevent Bxd6. CPLX 2.2} Bxd3 {[%emt 0:00:58] CPLX 2.5} 12. Qxd3 {[%emt 0:00:34] RECAPT} Na6 {[%emt 0:00:34][%cal Bb8a6,Ba6c7,Bc7e6][%mdl 32] BESTDEEP} 13. Re2 {[%emt 0:02:06] BESTDEEP} Nc7 {[%emt 0:01:28] CPLX 2.6 14 (Rf8-e8) (=2)} 14. Rae1 {[%emt 0:01:35] CPLX 2.7 8 (Nf1-e3) (=3)} Ne6 {[%emt 0:00:13] CPLX 2.7} 15. Bxd6 {[%emt 0:00:08] CPLX 2.9} Bxd6 {[%emt 0:00:28] RECAPT} 16. g3 {[%emt 0:00:07] Inhibits Nf4. CPLX 2.3} Qf6 {[%emt 0:05:44] CPLX 2.2 10 (Qd8-d7) (=3)} 17. c3 {[%emt 0:01:20] [#] CPLX 2.4 12 (Kg1-g2) (=4)} Qg6 $146 {[%emt 0:09:54] CPLX 2.4 4 (Ra8-e8) (=3)} ({Predecessor:} 17... Rae8 18. Kg2 Re7 19. Ne3 Qg6 20. Qxg6 hxg6 21. Kf1 Rfe8 22. h4 Nc7 {½-½ (33) Danin,A (2511)-Volokitin,A (2634) Austria 2019}) 18. Qxg6 {[%emt 0:02:11] CPLX 2.6 2 (Nf3-e5) (=3)} hxg6 {[%emt 0:00:08] RECAPT} 19. h4 {[%emt 0:00:58] CPLX 2.0 6 (a2-a3) (=4)} Rfe8 {[%emt 0:00:35] CPLX 2.0 10 (Ne6-c7) (=3)} 20. N1d2 {[%emt 0:03:48] CPLX 2.0 15 (Nf1-h2) (=5)} Rad8 {[%emt 0:10:24] CPLX 2.0 14 (Kg8-f8) (=4)} 21. Kf1 {[%emt 0:02:09] CPLX 2.0 10 (Nd2-b3) (=5)} Kf8 {[%emt 0:08:28] BESTDEEP} 22. Ne5 {[%emt 0:03:20] CPLX 2.0 0 (Nd2-b3) (=5)} Bxe5 {[%emt 0:00:31] CPLX 2.0} 23. Rxe5 {[%emt 0:00:07] RECAPT} Re7 {[%emt 0:12:46] CPLX 2.0 0 (Rd8-d7) (=3)} 24. Nf3 {[%emt 0:04:19] CPLX 2.0 9 (Nd2-b3) (=5)} Rde8 $1 {[%emt 0:00:13] CPLX 2.0} 25. R5e3 {[%emt 0:00:50] CPLX 2.0 0 (a2-a4) (=4)} f6 {[%emt 0:00:22] BESTDEEP} 26. Ke2 {[%emt 0:02:14] CPLX 2.0 2 (a2-a4) (=4)} Nc7 {[%emt 0:00:59] CPLX 2.0 9 (Kf8-f7) (=3)} 27. Rxe7 {[%emt 0:00:36] CPLX 2.0 9 (a2-a4) (=4)} Rxe7+ {[%emt 0:00:08] RECAPT 10 (Kf8xe7) (=4)} 28. Kd3 {[%emt 0:00:06] CPLX 2.0} Rxe1 {[%emt 0:01:56] CPLX 2.0} 29. Nxe1 $11 {[%emt 0:00:10] KN-KN. RECAPT} Ke7 {[%emt 0:01:34] CPLX 2.0 8 (Kf8-f7) (=4)} 30. Ng2 {[%emt 0:00:44] CPLX 2.0 7 (Ne1-c2) (=4)} Ne8 {[%emt 0:04:11] BESTDEEP} 31. Nf4 {[%emt 0:01:17] CPLX 2.0} Kf7 {[%emt 0:00:37] CPLX 2.0 13 (g6-g5) (=4)} 32. f3 {[%emt 0:01:09] CPLX 2.0 18 (g3-g4) (=5)} Nd6 {[%emt 0:00:22] CPLX 2.0 0 (g6-g5) (=4)} 33. g4 {[%emt 0:00:07] BESTDEEP} g5 {[%emt 0:00:20] An uneventful encounter.  Weighted Error Value: White=0.05 (flawless) /Black=0.03 (flawless)} 1/2-1/2

[Event "ESP-chT Honor Division 2022"]
[Site "Linares"]
[Date "2022.09.19"]
[Round "3.21"]
[White "Hakobyan, Aram"]
[Black "Pichot, Alan"]
[Result "1/2-1/2"]
[ECO "E21"]
[WhiteElo "2611"]
[BlackElo "2641"]
[Annotator "TA"]
[PlyCount "63"]
[EventDate "2022.09.17"]
[EventType "team-tourn"]
[EventCountry "ESP"]
[SourceTitle "playchess.com"]
[Source "ChessBase"]
[SourceQuality "1"]
[TimeControl "5400+30"]

{[%evp 9,63,13,14,7,21,27,26,28,33,19,46,31,27,28,28,35,12,0,2,0,0,-18,-23,-45,-65,-92,0,0,0,20,16,0,39,35,31,28,73,67,66,24,68,64,60,51,95,91,95,79,84,72,97,57,57,37,60,0]} 1. d4 {[%emt 0:01:01]} Nf6 {[%emt 0:00:14]} 2. c4 {[%emt 0:00:26]} e6 {[%emt 0:00:10]} 3. Nc3 {[%emt 0:00:41]} Bb4 {[%emt 0:00:13]} 4. Nf3 {[%emt 0:00:31]} Bxc3+ {[%emt 0:05:52]} 5. bxc3 {[%emt 0:00:02]} d6 {[%emt 0:00:10] CPLX 2.0 1 (b7-b6) (=1)} 6. Bg5 {[%emt 0:05:59][%cal Bc1g5,Bg5h4,Bh4g3][%mdl 32] CPLX 2.1 7 (e2-e3) (=7). E21: Nimzo-Indian: 4 Nf3.} h6 {[%emt 0:01:50] CPLX 2.4 14 (b7-b6) (=8)} 7. Bh4 {[%emt 0:00:11] BESTDEEP} Qe7 {[%emt 0:01:09] CPLX 2.4 0 (Nb8-c6) (=5)} 8. Nd2 {[%emt 0:01:14] CPLX 2.4 0 (e2-e3) (=2). White has an edge.} e5 {[%emt 0:02:42] BESTDEEP} 9. e3 {[%emt 0:00:24] CPLX 2.7 14 (f2-f3) (=5)} g5 {[%emt 0:25:05] CPLX 2.8 27 (Nb8-c6) (=8)} 10. Bg3 {[%emt 0:00:03] CPLX 2.7} Nc6 {[%emt 0:00:05] CPLX 2.5 0 (Bc8-f5) (=7)} 11. Be2 {[%emt 0:01:27] [#] CPLX 2.6 0 (d4-d5) (=4)} Bf5 $146 {[%emt 0:01:03] CPLX 2.6 0 (Bc8-d7) (=6)} ({Predecessor:} 11... h5 12. h4 g4 13. Qc2 Bd7 14. d5 Nd8 15. Bd3 b6 16. Bf5 Nb7 17. Bxd7+ Nxd7 {0-1 (68) Pushkov,N (2304)-Oganian,M (2412) Maikop 2018}) 12. d5 {[%emt 0:15:01] EASY} Nb8 {[%emt 0:02:24] BESTDEEP} 13. h4 {[%emt 0:04:19] CPLX 2.6 12 (f2-f3) (=4)} Rg8 {[%emt 0:01:53] BESTDEEP} 14. hxg5 {[%emt 0:06:23] CPLX 2.8} hxg5 {[%emt 0:00:07] RECAPT} 15. c5 {[%emt 0:08:54][%cal Oe3e4] CPLX 2.8 18 (f2-f3) (=5)} Nbd7 {[%emt 0:00:32] EASY} 16. cxd6 {[%emt 0:13:33] CPLX 2.9 22 (Qd1-a4) (=7)} cxd6 {[%emt 0:00:08] RECAPT} 17. c4 {[%emt 0:00:13] CPLX 2.5 27 (Qd1-a4) (=8)} Kf8 {[%emt 0:03:16] RELBLUND 92 (Nd7-c5) (=10)} (17... Nc5 $17) 18. f3 $36 {[%emt 0:02:04][%mdl 2048] Black is under pressure. CPLX 2.9} Kg7 {[%emt 0:01:18] BESTDEEP} 19. e4 {[%emt 0:01:00] EASY} Bg6 {[%emt 0:00:11] CPLX 3.2} 20. Bf2 {[%emt 0:01:24] CPLX 2.9} Rh8 {[%emt 0:06:41] CPLX 3.0 39 (Nf6-h5) (=11)} 21. Rxh8 {[%emt 0:01:48] EASY} Rxh8 {[%emt 0:00:05] RECAPT} 22. Qa4 {[%emt 0:01:21] BESTDEEP} Rh1+ {[%emt 0:06:32] CPLX 2.7 45 (g5-g4) (=12)} 23. Bf1 {[%emt 0:00:14] CPLX 2.4} a6 {[%emt 0:06:20] EASY} 24. Qb4 {[%emt 0:01:47] CPLX 2.6 42 (g2-g4) (=7)} Nc5 {[%emt 0:04:15] MISSDEEP-g5-g4 44 (g5-g4) (=13)} 25. Bxc5 {[%emt 0:01:59] CPLX 2.9} dxc5 {[%emt 0:00:03] RECAPT} 26. Qb6 {[%emt 0:00:05] CPLX 2.6} Ne8 {[%emt 0:07:28][%cal Og5g4] [#] CPLX 2.8 44 (g5-g4) (=14)} 27. g4 $1 {[%emt 0:06:35] And now Rb1 would win. DEEPSTRONG} Rh6 {[%emt 0:05:11][%cal Og6e4] DEEPSTRONG} 28. Qa7 {[%emt 0:02:24] Threatens to win with Rb1. White is more active. BESTDEEP} Rh2 {[%emt 0:01:28] CPLX 2.2} 29. O-O-O {[%emt 0:01:34] CPLX 3.0 12 (Bf1-e2) (=6)} Qc7 {[%emt 0:01:52] Strongly threatening ...Qa5. CPLX 3.9 25 (Rh2-f2) (=13)} 30. Nb3 {[%emt 0:00:17] Inhibits Qa5. EASY} b6 $1 {[%emt 0:02:29] DEEPSTRONG} 31. Qxc7 {[%emt 0:01:56] CPLX 4.6 20 (Qa7xa6) (=7)} Nxc7 {[%emt 0:00:05] RECAPT} 32. Rd2 {[%emt 0:13:33] Weighted Error Value: White=0.08 (flawless) /Black=0.17 (very precise)} ({White should play} 32. Nd2 $14) 1/2-1/2